[Event "*** SCC Grand Prix: Titled Tuesday Blitz"]
[Site "Chess.com"]
[Date "2020.07.07"]
[Round "7"]
[White "fmshawnrl123"]
[Black "SARGISMV"]
[Result "1-0"]
[WhiteElo "2654"]
[BlackElo "2487"]
[TimeControl "180+1"]
[EndTime "11:21:07 PDT"]
[Termination "fmshawnrl123 won by checkmate"]

1. c4 {[%clk 0:03:00.9]} 1... c5 {[%clk 0:02:59.6]} 2. g3 {[%clk 0:03:01.2]}
2... g6 {[%clk 0:02:59.8]} 3. Bg2 {[%clk 0:03:01.7]} 3... Bg7 {[%clk 0:03:00.4]}
4. Nc3 {[%clk 0:03:02.6]} 4... Nc6 {[%clk 0:03:00.5]} 5. e4 {[%clk 0:03:03]}
5... Nf6 {[%clk 0:02:58.6]} 6. Nge2 {[%clk 0:03:03.3]} 6... d6 {[%clk 0:02:59]}
7. O-O {[%clk 0:03:03.7]} 7... O-O {[%clk 0:02:59.5]} 8. d3 {[%clk 0:03:04]}
8... a6 {[%clk 0:03:00.1]} 9. h3 {[%clk 0:03:04]} 9... Rb8 {[%clk 0:03:00.6]}
10. a4 {[%clk 0:03:04.2]} 10... Ne8 {[%clk 0:03:00.8]} 11. Be3 {[%clk
0:03:04.2]} 11... Nc7 {[%clk 0:03:01.3]} 12. d4 {[%clk 0:03:04.5]} 12... cxd4
{[%clk 0:03:01.5]} 13. Nxd4 {[%clk 0:03:05.4]} 13... Ne6 {[%clk 0:03:00.1]} 14.
Nde2 {[%clk 0:03:05.9]} 14... Qa5 {[%clk 0:02:47.7]} 15. Rc1 {[%clk 0:02:58.8]}
15... Re8 {[%clk 0:02:47.7]} 16. b3 {[%clk 0:02:58.4]} 16... Nc5 {[%clk
0:02:39.7]} 17. Bd2 {[%clk 0:02:50.4]} 17... Qb6 {[%clk 0:02:36.3]} 18. Rb1
{[%clk 0:02:47.5]} 18... Nb4 {[%clk 0:02:32]} 19. Nf4 {[%clk 0:02:45.3]} 19...
e6 {[%clk 0:02:19.5]} 20. h4 {[%clk 0:02:29.8]} 20... Ncd3 {[%clk 0:02:04.7]}
21. Nxd3 {[%clk 0:02:27]} 21... Nxd3 {[%clk 0:02:05.6]} 22. Be3 {[%clk
0:02:22.9]} 22... Nc5 {[%clk 0:01:57.3]} 23. b4 {[%clk 0:02:22]} 23... Bxc3
{[%clk 0:01:50.9]} 24. bxc5 {[%clk 0:02:22.6]} 24... Qa5 {[%clk 0:01:37.9]} 25.
cxd6 {[%clk 0:02:21.5]} 25... Bd7 {[%clk 0:01:38.5]} 26. h5 {[%clk 0:02:06.3]}
26... Bxa4 {[%clk 0:01:31.3]} 27. Qd3 {[%clk 0:02:06.3]} 27... Be5 {[%clk
0:01:14.1]} 28. hxg6 {[%clk 0:01:57.8]} 28... hxg6 {[%clk 0:01:15]} 29. d7
{[%clk 0:01:58.1]} 29... Rf8 {[%clk 0:00:57.2]} 30. Bb6 {[%clk 0:01:57.3]} 30...
Qc3 {[%clk 0:00:50.4]} 31. Qxc3 {[%clk 0:01:57.3]} 31... Bxc3 {[%clk 0:00:51.3]}
32. d8=Q {[%clk 0:01:57.7]} 32... Rfxd8 {[%clk 0:00:50.7]} 33. Bxd8 {[%clk
0:01:58.6]} 33... Rxd8 {[%clk 0:00:51.3]} 34. Rxb7 {[%clk 0:01:58.7]} 34... a5
{[%clk 0:00:41]} 35. Rfb1 {[%clk 0:01:52.2]} 35... Rd2 {[%clk 0:00:30.2]} 36.
Ra7 {[%clk 0:01:36.1]} 36... Bc2 {[%clk 0:00:16.2]} 37. Rb8+ {[%clk 0:01:32.1]}
37... Kg7 {[%clk 0:00:15.8]} 38. Rbb7 {[%clk 0:01:31.7]} 38... Bd4 {[%clk
0:00:11.5]} 39. Rxf7+ {[%clk 0:01:30.7]} 39... Kh6 {[%clk 0:00:12.4]} 40. Rxa5
{[%clk 0:01:28.5]} 40... Bd3 {[%clk 0:00:08.4]} 41. c5 {[%clk 0:01:17.9]} 41...
Rc2 {[%clk 0:00:07.3]} 42. c6 {[%clk 0:01:11.8]} 42... Rxc6 {[%clk 0:00:05.8]}
43. Rd7 {[%clk 0:01:12]} 43... e5 {[%clk 0:00:06.2]} 44. Rxe5 {[%clk 0:01:03.9]}
44... Bxe5 {[%clk 0:00:07.1]} 45. Rxd3 {[%clk 0:01:04.2]} 45... Rc1+ {[%clk
0:00:07.1]} 46. Kh2 {[%clk 0:01:02.8]} 46... Rc2 {[%clk 0:00:07.5]} 47. f4
{[%clk 0:01:01.2]} 47... Bc3 {[%clk 0:00:07.9]} 48. Kh3 {[%clk 0:00:59.9]} 48...
Be1 {[%clk 0:00:08]} 49. e5 {[%clk 0:00:50.3]} 49... Rc3 {[%clk 0:00:07.9]} 50.
Be4 {[%clk 0:00:33.1]} 50... Rxd3 {[%clk 0:00:07.6]} 51. Bxd3 {[%clk 0:00:34]}
51... g5 {[%clk 0:00:06.7]} 52. Kg4 {[%clk 0:00:22.5]} 52... gxf4 {[%clk
0:00:06.9]} 53. gxf4 {[%clk 0:00:23.4]} 53... Bc3 {[%clk 0:00:07.3]} 54. Kf5
{[%clk 0:00:22.4]} 54... Kg7 {[%clk 0:00:07.6]} 55. Ke6 {[%clk 0:00:22.3]} 55...
Kf8 {[%clk 0:00:06.5]} 56. f5 {[%clk 0:00:22.4]} 56... Bb4 {[%clk 0:00:06.9]}
57. f6 {[%clk 0:00:22.2]} 57... Ba3 {[%clk 0:00:07.3]} 58. Kd7 {[%clk
0:00:19.2]} 58... Bb2 {[%clk 0:00:07.7]} 59. Kd6 {[%clk 0:00:19.5]} 59... Ba1
{[%clk 0:00:07.4]} 60. Ke6 {[%clk 0:00:15.6]} 60... Bc3 {[%clk 0:00:07.1]} 61.
Kd5 {[%clk 0:00:14.8]} 61... Kf7 {[%clk 0:00:06.7]} 62. Ke4 {[%clk 0:00:12.7]}
62... Bb2 {[%clk 0:00:04.5]} 63. Kf5 {[%clk 0:00:11.4]} 63... Ba3 {[%clk
0:00:01.8]} 64. Bc4+ {[%clk 0:00:11.5]} 64... Kf8 {[%clk 0:00:02.1]} 65. e6
{[%clk 0:00:08.4]} 65... Bb4 {[%clk 0:00:02.2]} 66. Ke4 {[%clk 0:00:08]} 66...
Ba3 {[%clk 0:00:02.8]} 67. Kd5 {[%clk 0:00:08]} 67... Bb4 {[%clk 0:00:02.9]} 68.
Bb5 {[%clk 0:00:05]} 68... Ba3 {[%clk 0:00:03.4]} 69. Kc6 {[%clk 0:00:05.1]}
69... Bb4 {[%clk 0:00:03.8]} 70. Kd7 {[%clk 0:00:04.8]} 70... Bc3 {[%clk
0:00:03.7]} 71. e7+ {[%clk 0:00:04.6]} 71... Kf7 {[%clk 0:00:04.6]} 72. e8=Q+
{[%clk 0:00:04.6]} 72... Kxf6 {[%clk 0:00:05.5]} 73. Qe6+ {[%clk 0:00:04.9]}
73... Kg5 {[%clk 0:00:05.6]} 74. Qd5+ {[%clk 0:00:04.7]} 74... Kf4 {[%clk
0:00:05.6]} 75. Qc4+ {[%clk 0:00:04.9]} 75... Bd4 {[%clk 0:00:04.7]} 76. Qxd4+
{[%clk 0:00:05.2]} 76... Kf5 {[%clk 0:00:04.9]} 77. Bd3+ {[%clk 0:00:04.9]}
77... Kg5 {[%clk 0:00:04.8]} 78. Qe5+ {[%clk 0:00:05.3]} 78... Kh6 {[%clk
0:00:05.6]} 79. Qf4+ {[%clk 0:00:05.3]} 79... Kh5 {[%clk 0:00:06.5]} 80. Qf5+
{[%clk 0:00:04.9]} 80... Kh6 {[%clk 0:00:07.4]} 81. Qg6# {[%clk 0:00:04.6]} 1-0

[Event "*** SCC Grand Prix: Titled Tuesday Blitz"]
[Site "Chess.com"]
[Date "2020.07.07"]
[Round "7"]
[White "IMHansNiemann"]
[Black "CarlosAlbornoz"]
[Result "1/2-1/2"]
[WhiteElo "2928"]
[BlackElo "2811"]
[TimeControl "180+1"]
[EndTime "11:21:13 PDT"]
[Termination "Game drawn by repetition"]

1. d4 {[%clk 0:03:00.9]} 1... Nf6 {[%clk 0:02:59.8]} 2. Nc3 {[%clk 0:02:50.8]}
2... d5 {[%clk 0:02:59.5]} 3. Bf4 {[%clk 0:02:50.9]} 3... a6 {[%clk 0:02:57.7]}
4. e3 {[%clk 0:02:51]} 4... c5 {[%clk 0:02:57.5]} 5. Nf3 {[%clk 0:02:51.7]} 5...
Nc6 {[%clk 0:02:55.7]} 6. Ne5 {[%clk 0:02:46.8]} 6... Bf5 {[%clk 0:02:49.2]} 7.
g4 {[%clk 0:02:39.1]} 7... Bg6 {[%clk 0:02:43.4]} 8. h4 {[%clk 0:02:36.4]} 8...
h6 {[%clk 0:02:29.5]} 9. Nxg6 {[%clk 0:02:23.5]} 9... fxg6 {[%clk 0:02:30.4]}
10. Qd3 {[%clk 0:02:16.7]} 10... Kf7 {[%clk 0:02:27.1]} 11. Bh3 {[%clk
0:02:06.3]} 11... e6 {[%clk 0:02:17.2]} 12. Ne2 {[%clk 0:02:04.3]} 12... Ne4
{[%clk 0:02:08.5]} 13. Bg2 {[%clk 0:01:52.5]} 13... Nf6 {[%clk 0:01:49.8]} 14.
g5 {[%clk 0:01:51.4]} 14... hxg5 {[%clk 0:01:48.8]} 15. Bxg5 {[%clk 0:01:45.8]}
15... Qb6 {[%clk 0:01:45.3]} 16. Nf4 {[%clk 0:01:41.2]} 16... Ne7 {[%clk
0:01:41.7]} 17. dxc5 {[%clk 0:01:37.4]} 17... Qxc5 {[%clk 0:01:37]} 18. O-O-O
{[%clk 0:01:21.5]} 18... Nf5 {[%clk 0:01:35.3]} 19. Kb1 {[%clk 0:01:17.5]} 19...
Bd6 {[%clk 0:01:32.8]} 20. Bxf6 {[%clk 0:00:55.5]} 20... gxf6 {[%clk 0:01:30.9]}
21. Nxe6 {[%clk 0:00:53.5]} 21... Kxe6 {[%clk 0:01:29.1]} 22. Bxd5+ {[%clk
0:00:53.8]} 22... Kd7 {[%clk 0:01:05.4]} 23. h5 {[%clk 0:00:36.1]} 23... Ne7
{[%clk 0:00:59.7]} 24. Qe4 {[%clk 0:00:27.7]} 24... Rxh5 {[%clk 0:00:54.4]} 25.
Rxh5 {[%clk 0:00:18.7]} 25... gxh5 {[%clk 0:00:55.3]} 26. Bxb7 {[%clk
0:00:18.3]} 26... Rb8 {[%clk 0:00:49.8]} 27. Bxa6 {[%clk 0:00:17.4]} 27... Qb6
{[%clk 0:00:44]} 28. Qa4+ {[%clk 0:00:14.5]} 28... Nc6 {[%clk 0:00:43.4]} 29. b3
{[%clk 0:00:11.5]} 29... Kc7 {[%clk 0:00:43.3]} 30. Be2 {[%clk 0:00:10.5]} 30...
Qc5 {[%clk 0:00:38.8]} 31. Qe4 {[%clk 0:00:08.6]} 31... Be5 {[%clk 0:00:37.4]}
32. f4 {[%clk 0:00:07.5]} 32... Bc3 {[%clk 0:00:35.3]} 33. Rd3 {[%clk
0:00:02.1]} 33... Rd8 {[%clk 0:00:28]} 34. Rxd8 {[%clk 0:00:02.1]} 34... Nxd8
{[%clk 0:00:28.8]} 35. Qh7+ {[%clk 0:00:02.4]} 35... Kb6 {[%clk 0:00:23.2]} 36.
Qd3 {[%clk 0:00:03.3]} 36... Nc6 {[%clk 0:00:21.5]} 37. a3 {[%clk 0:00:03.9]}
37... Be1 {[%clk 0:00:17.6]} 38. b4 {[%clk 0:00:03.9]} 38... Qc3 {[%clk
0:00:17.8]} 39. Qa6+ {[%clk 0:00:03.1]} 39... Kc7 {[%clk 0:00:17.9]} 40. Bf3
{[%clk 0:00:04]} 40... h4 {[%clk 0:00:11]} 41. b5 {[%clk 0:00:04.3]} 41... Na5
{[%clk 0:00:09.4]} 42. b6+ {[%clk 0:00:04.2]} 42... Kd7 {[%clk 0:00:08.6]} 43.
b7 {[%clk 0:00:04.7]} 43... Nxb7 {[%clk 0:00:07.7]} 44. Qxb7+ {[%clk 0:00:05.1]}
44... Kd6 {[%clk 0:00:07.1]} 45. Qd5+ {[%clk 0:00:05.2]} 45... Ke7 {[%clk
0:00:07.2]} 46. Qe4+ {[%clk 0:00:05.2]} 46... Kf8 {[%clk 0:00:07]} 47. Qd3
{[%clk 0:00:06]} 47... Qxd3 {[%clk 0:00:06.4]} 48. cxd3 {[%clk 0:00:06.9]} 48...
h3 {[%clk 0:00:07.3]} 49. Kc2 {[%clk 0:00:06.7]} 49... h2 {[%clk 0:00:06.9]} 50.
d4 {[%clk 0:00:07]} 50... Ke7 {[%clk 0:00:06.3]} 51. Kd3 {[%clk 0:00:07.6]}
51... f5 {[%clk 0:00:06.4]} 52. e4 {[%clk 0:00:07.4]} 52... fxe4+ {[%clk
0:00:05.7]} 53. Kxe4 {[%clk 0:00:08]} 53... Ba5 {[%clk 0:00:05.3]} 54. a4 {[%clk
0:00:08.4]} 54... Kd6 {[%clk 0:00:05.7]} 55. f5 {[%clk 0:00:08.6]} 55... Bd8
{[%clk 0:00:06.2]} 56. Bh1 {[%clk 0:00:08.7]} 56... Bf6 {[%clk 0:00:06.2]} 57.
Kd3 {[%clk 0:00:09.3]} 57... Bd8 {[%clk 0:00:06]} 58. Kc4 {[%clk 0:00:09.8]}
58... Bb6 {[%clk 0:00:05.8]} 59. d5 {[%clk 0:00:09]} 59... Ba5 {[%clk
0:00:05.1]} 60. Kb5 {[%clk 0:00:09.3]} 60... Bd2 {[%clk 0:00:04.1]} 61. f6
{[%clk 0:00:09.5]} 61... Bg5 {[%clk 0:00:03.3]} 62. f7 {[%clk 0:00:09.9]} 62...
Ke7 {[%clk 0:00:04.2]} 63. a5 {[%clk 0:00:10.2]} 63... Kxf7 {[%clk 0:00:04.3]}
64. d6 {[%clk 0:00:10.7]} 64... Ke8 {[%clk 0:00:04.1]} 65. a6 {[%clk 0:00:10.5]}
65... Be3 {[%clk 0:00:04.1]} 66. Kc6 {[%clk 0:00:10]} 66... Kd8 {[%clk
0:00:04.4]} 67. Bg2 {[%clk 0:00:08.1]} 67... Bf2 {[%clk 0:00:04.2]} 68. Kd5
{[%clk 0:00:06.5]} 68... Bg1 {[%clk 0:00:04.2]} 69. Ke6 {[%clk 0:00:04.8]} 69...
Ba7 {[%clk 0:00:05.1]} 70. Bh1 {[%clk 0:00:04]} 70... Bg1 {[%clk 0:00:06]} 71.
Kd5 {[%clk 0:00:04.7]} 71... Ba7 {[%clk 0:00:06.1]} 72. Kc6 {[%clk 0:00:05.2]}
72... Bg1 {[%clk 0:00:06.2]} 73. d7 {[%clk 0:00:05]} 73... Bf2 {[%clk
0:00:06.1]} 74. Kd6 {[%clk 0:00:05.6]} 74... Ba7 {[%clk 0:00:06]} 75. Ke6 {[%clk
0:00:06.5]} 75... Bg1 {[%clk 0:00:06.3]} 76. Kf5 {[%clk 0:00:06.4]} 76... Kxd7
{[%clk 0:00:06]} 77. Kg4 {[%clk 0:00:07.3]} 77... Kc7 {[%clk 0:00:06.3]} 78. Kh3
{[%clk 0:00:07.9]} 78... Kb8 {[%clk 0:00:07.2]} 79. Kg2 {[%clk 0:00:07.5]} 79...
Ka7 {[%clk 0:00:08.1]} 80. Kg3 {[%clk 0:00:08.4]} 80... Kxa6 {[%clk 0:00:08.3]}
81. Kg2 {[%clk 0:00:09.3]} 81... Ka5 {[%clk 0:00:09.2]} 82. Kf3 {[%clk
0:00:09.6]} 82... Kb4 {[%clk 0:00:10.1]} 83. Ke2 {[%clk 0:00:08.3]} 83... Kc5
{[%clk 0:00:11]} 84. Kf3 {[%clk 0:00:09.1]} 84... Kb6 {[%clk 0:00:09.7]} 85. Kg3
{[%clk 0:00:09.6]} 85... Ka6 {[%clk 0:00:09.6]} 86. Kf3 {[%clk 0:00:09.9]} 86...
Kb6 {[%clk 0:00:09.8]} 87. Kg3 {[%clk 0:00:10.8]} 87... Ka6 {[%clk 0:00:09.8]}
1/2-1/2

[Event "*** SCC Grand Prix: Titled Tuesday Blitz"]
[Site "Chess.com"]
[Date "2020.07.07"]
[Round "7"]
[White "snap_man"]
[Black "Bacyanide"]
[Result "0-1"]
[WhiteElo "2299"]
[BlackElo "2452"]
[TimeControl "180+1"]
[EndTime "11:21:23 PDT"]
[Termination "Bacyanide won by resignation"]

1. Nf3 {[%clk 0:03:00.9]} 1... d5 {[%clk 0:02:59.6]} 2. g3 {[%clk 0:03:01.1]}
2... c5 {[%clk 0:02:59.5]} 3. Bg2 {[%clk 0:03:01.5]} 3... Nc6 {[%clk 0:03:00.1]}
4. b3 {[%clk 0:03:01.9]} 4... e5 {[%clk 0:02:55.1]} 5. O-O {[%clk 0:03:00.3]}
5... Nf6 {[%clk 0:02:54.7]} 6. Bb2 {[%clk 0:03:00.5]} 6... Bd6 {[%clk
0:02:54.4]} 7. d3 {[%clk 0:02:59.4]} 7... O-O {[%clk 0:02:54.2]} 8. c4 {[%clk
0:02:52.5]} 8... d4 {[%clk 0:02:53.9]} 9. Na3 {[%clk 0:02:40.7]} 9... Re8 {[%clk
0:02:51.5]} 10. Nd2 {[%clk 0:02:40.2]} 10... Bf5 {[%clk 0:02:49.6]} 11. Nc2
{[%clk 0:02:18.2]} 11... e4 {[%clk 0:02:49.6]} 12. Nxe4 {[%clk 0:02:10.5]} 12...
Nxe4 {[%clk 0:02:50.5]} 13. dxe4 {[%clk 0:02:06.4]} 13... Bxe4 {[%clk
0:02:51.4]} 14. Bxe4 {[%clk 0:02:03.1]} 14... Rxe4 {[%clk 0:02:52.3]} 15. e3
{[%clk 0:01:55.5]} 15... Be7 {[%clk 0:02:36.1]} 16. exd4 {[%clk 0:01:46.8]}
16... Bf6 {[%clk 0:02:36.2]} 17. Qd3 {[%clk 0:01:36]} 17... Re7 {[%clk
0:02:31.6]} 18. Rad1 {[%clk 0:01:36.1]} 18... Rd7 {[%clk 0:02:22.1]} 19. a3
{[%clk 0:01:25.7]} 19... cxd4 {[%clk 0:02:19.1]} 20. b4 {[%clk 0:01:25.5]} 20...
Ne5 {[%clk 0:02:07.1]} 21. Qf5 {[%clk 0:01:25.6]} 21... Nxc4 {[%clk 0:02:05.5]}
22. Bc1 {[%clk 0:01:16.7]} 22... d3 {[%clk 0:02:02.1]} 23. Ne3 {[%clk
0:01:15.7]} 23... Nxe3 {[%clk 0:01:50.9]} 24. Bxe3 {[%clk 0:01:16.6]} 24... a5
{[%clk 0:01:48]} 25. b5 {[%clk 0:01:15.9]} 25... Rc8 {[%clk 0:01:45.9]} 26. Rd2
{[%clk 0:01:14.1]} 26... g6 {[%clk 0:01:45.8]} 27. Qe4 {[%clk 0:01:09.6]} 27...
Rc3 {[%clk 0:01:43.7]} 28. a4 {[%clk 0:01:08.4]} 28... h5 {[%clk 0:01:32.1]} 29.
Rfd1 {[%clk 0:01:07.6]} 29... Kg7 {[%clk 0:01:31.6]} 30. Qf4 {[%clk 0:00:56.5]}
30... Rd5 {[%clk 0:01:23.7]} 31. Qe4 {[%clk 0:00:51]} 31... Qd7 {[%clk
0:01:20.7]} 32. Bb6 {[%clk 0:00:45.7]} 32... Bg5 {[%clk 0:01:15.5]} 33. f4
{[%clk 0:00:44.9]} 33... Bf6 {[%clk 0:01:15.6]} 34. Bxa5 {[%clk 0:00:43.7]}
34... Rb3 {[%clk 0:00:59]} 35. Bb6 {[%clk 0:00:42]} 35... Bd4+ {[%clk
0:00:55.5]} 36. Bxd4+ {[%clk 0:00:41.5]} 36... Rxd4 {[%clk 0:00:56.4]} 37. Qe5+
{[%clk 0:00:36.2]} 37... Kh7 {[%clk 0:00:56.5]} 38. Qe3 {[%clk 0:00:32]} 38...
Rxa4 {[%clk 0:00:49.7]} 39. Rxd3 {[%clk 0:00:31.9]} 39... Rxd3 {[%clk
0:00:48.3]} 40. Qxd3 {[%clk 0:00:30.4]} 40... Qe6 {[%clk 0:00:32.9]} 41. Kh1
{[%clk 0:00:26.7]} 41... Ra2 {[%clk 0:00:31]} 42. Qd5 {[%clk 0:00:26.1]} 42...
Qxd5+ {[%clk 0:00:20.4]} 43. Rxd5 {[%clk 0:00:27]} 43... Rb2 {[%clk 0:00:20.8]}
44. Kg1 {[%clk 0:00:25.6]} 44... Kg7 {[%clk 0:00:20.4]} 45. Re5 {[%clk
0:00:24.7]} 45... Kf6 {[%clk 0:00:14.1]} 46. h4 {[%clk 0:00:20.3]} 46... Kg7
{[%clk 0:00:14]} 47. Kh1 {[%clk 0:00:20.3]} 47... Kf8 {[%clk 0:00:13.9]} 48. Kg1
{[%clk 0:00:19.1]} 48... f6 {[%clk 0:00:14.1]} 49. Re6 {[%clk 0:00:18]} 49...
Rxb5 {[%clk 0:00:13.5]} 50. Rxf6+ {[%clk 0:00:18.4]} 50... Kg7 {[%clk
0:00:14.4]} 51. Rd6 {[%clk 0:00:17.8]} 51... Rb2 {[%clk 0:00:14.7]} 52. Rd8
{[%clk 0:00:15.2]} 52... b5 {[%clk 0:00:13.9]} 53. Rb8 {[%clk 0:00:14.8]} 53...
Kf6 {[%clk 0:00:14.2]} 54. Rb6+ {[%clk 0:00:15]} 54... Kf5 {[%clk 0:00:14.3]}
55. Kf1 {[%clk 0:00:15.2]} 55... b4 {[%clk 0:00:13.7]} 56. Ke1 {[%clk
0:00:15.3]} 56... b3 {[%clk 0:00:12.6]} 57. Kd1 {[%clk 0:00:15.7]} 57... Rb1+
{[%clk 0:00:11.7]} 58. Kd2 {[%clk 0:00:15.9]} 58... b2 {[%clk 0:00:09.1]} 59.
Kc2 {[%clk 0:00:15.8]} 59... Rg1 {[%clk 0:00:09.6]} 60. Kxb2 {[%clk 0:00:15.2]}
60... Rxg3 {[%clk 0:00:10.1]} 61. Kc2 {[%clk 0:00:13.6]} 61... Kxf4 {[%clk
0:00:09.8]} 62. Kd2 {[%clk 0:00:14.1]} 62... Rg4 {[%clk 0:00:10.1]} 63. Rb4+
{[%clk 0:00:13.6]} 63... Kg3 {[%clk 0:00:11]} 64. Rb3+ {[%clk 0:00:13.4]} 64...
Kxh4 {[%clk 0:00:11.2]} 65. Ke2 {[%clk 0:00:14]} 65... Rf4 {[%clk 0:00:10.5]}
66. Ke3 {[%clk 0:00:13.7]} 66... g5 {[%clk 0:00:10.7]} 67. Rb1 {[%clk
0:00:13.8]} 67... Kg4 {[%clk 0:00:10.4]} 68. Rg1+ {[%clk 0:00:13.9]} 68... Kf5
{[%clk 0:00:10.3]} 69. Rh1 {[%clk 0:00:12.7]} 69... h4 {[%clk 0:00:10.6]} 70.
Rh3 {[%clk 0:00:13.1]} 70... Kg4 {[%clk 0:00:10.6]} 71. Rh1 {[%clk 0:00:12.1]}
71... h3 {[%clk 0:00:10.9]} 72. Rg1+ {[%clk 0:00:12]} 72... Kh4 {[%clk
0:00:10.9]} 73. Rh1 {[%clk 0:00:12.1]} 73... Rf7 {[%clk 0:00:10.2]} 0-1

[Event "*** SCC Grand Prix: Titled Tuesday Blitz"]
[Site "Chess.com"]
[Date "2020.07.07"]
[Round "7"]
[White "angryhorse9"]
[Black "Artem_Sadovsky"]
[Result "0-1"]
[WhiteElo "2399"]
[BlackElo "2538"]
[TimeControl "180+1"]
[EndTime "11:21:28 PDT"]
[Termination "Artem_Sadovsky won by resignation"]

1. e4 {[%clk 0:02:59.9]} 1... g6 {[%clk 0:02:59.4]} 2. d4 {[%clk 0:02:50.5]}
2... Bg7 {[%clk 0:03:00.3]} 3. Nc3 {[%clk 0:02:49.9]} 3... d6 {[%clk 0:03:01.2]}
4. f4 {[%clk 0:02:48.6]} 4... Nd7 {[%clk 0:03:00.5]} 5. Nf3 {[%clk 0:02:48.7]}
5... c5 {[%clk 0:03:01]} 6. d5 {[%clk 0:02:43.3]} 6... a6 {[%clk 0:03:00.4]} 7.
a4 {[%clk 0:02:42.8]} 7... Ngf6 {[%clk 0:02:59.8]} 8. Bd3 {[%clk 0:02:43.2]}
8... O-O {[%clk 0:02:59.8]} 9. O-O {[%clk 0:02:43.3]} 9... Rb8 {[%clk
0:02:59.4]} 10. Kh1 {[%clk 0:02:42.3]} 10... b5 {[%clk 0:02:59.5]} 11. axb5
{[%clk 0:02:42]} 11... axb5 {[%clk 0:03:00.4]} 12. Nxb5 {[%clk 0:02:40.6]} 12...
Nxe4 {[%clk 0:03:00]} 13. c4 {[%clk 0:02:40.7]} 13... Ndf6 {[%clk 0:02:56.7]}
14. Qc2 {[%clk 0:02:39.2]} 14... Bf5 {[%clk 0:02:55.2]} 15. g4 {[%clk
0:02:39.5]} 15... Bxg4 {[%clk 0:02:29.1]} 16. Bxe4 {[%clk 0:02:38.8]} 16... e6
{[%clk 0:02:19.1]} 17. dxe6 {[%clk 0:02:32.2]} 17... fxe6 {[%clk 0:02:20]} 18.
Bd3 {[%clk 0:02:23.4]} 18... e5 {[%clk 0:02:12.6]} 19. fxe5 {[%clk 0:02:17.9]}
19... dxe5 {[%clk 0:02:12.7]} 20. Nxe5 {[%clk 0:02:18]} 20... Bc8 {[%clk
0:02:06.6]} 21. Be2 {[%clk 0:01:51.4]} 21... Bb7+ {[%clk 0:02:04.3]} 22. Bf3
{[%clk 0:01:51.5]} 22... Ng4 {[%clk 0:02:03.7]} 23. Bxb7 {[%clk 0:01:22.1]}
23... Rxf1+ {[%clk 0:02:01.5]} 24. Kg2 {[%clk 0:01:22.3]} 24... Bxe5 {[%clk
0:01:00.9]} 25. Bd5+ {[%clk 0:01:06.4]} 25... Kh8 {[%clk 0:01:01.3]} 26. Kxf1
{[%clk 0:00:53.8]} 26... Qh4 {[%clk 0:01:01.7]} 27. Ra8 {[%clk 0:00:36.7]} 27...
Nxh2+ {[%clk 0:00:59.7]} 28. Kg2 {[%clk 0:00:31.1]} 28... Rxa8 {[%clk
0:00:52.8]} 29. Bxa8 {[%clk 0:00:32]} 29... Qg3+ {[%clk 0:00:38.8]} 30. Kh1
{[%clk 0:00:29.1]} 30... Ng4 {[%clk 0:00:39.7]} 31. Qg2 {[%clk 0:00:10.2]} 31...
Qh4+ {[%clk 0:00:15]} 32. Kg1 {[%clk 0:00:09.7]} 32... Qe1+ {[%clk 0:00:11.3]}
33. Qf1 {[%clk 0:00:09.7]} 33... Qg3+ {[%clk 0:00:11.6]} 34. Qg2 {[%clk
0:00:09.4]} 34... Qe1+ {[%clk 0:00:11.8]} 35. Qf1 {[%clk 0:00:08.8]} 35... Bh2+
{[%clk 0:00:12.7]} 36. Kg2 {[%clk 0:00:08.7]} 36... Qg3+ {[%clk 0:00:13]} 37.
Kh1 {[%clk 0:00:06.8]} 37... Nf2+ {[%clk 0:00:13.9]} 38. Qxf2 {[%clk 0:00:07.3]}
38... Qxf2 {[%clk 0:00:14.8]} 39. Be3 {[%clk 0:00:07.1]} 39... Qxe3 {[%clk
0:00:15.1]} 40. Kxh2 {[%clk 0:00:04.2]} 40... Qd2+ {[%clk 0:00:15]} 41. Kg3
{[%clk 0:00:04]} 41... Qxb2 {[%clk 0:00:15.9]} 42. Bd5 {[%clk 0:00:03.5]} 42...
Qb4 {[%clk 0:00:16.3]} 43. Kf4 {[%clk 0:00:03.9]} 43... Kg7 {[%clk 0:00:16.6]}
44. Ke5 {[%clk 0:00:04]} 44... Kh6 {[%clk 0:00:16.9]} 45. Kd6 {[%clk 0:00:04.3]}
45... Kg5 {[%clk 0:00:09]} 46. Nc7 {[%clk 0:00:05.2]} 46... Kf4 {[%clk 0:00:07]}
47. Ne6+ {[%clk 0:00:06.1]} 47... Ke3 {[%clk 0:00:06.3]} 48. Kc6 {[%clk
0:00:06.5]} 48... h5 {[%clk 0:00:05.4]} 49. Nxc5 {[%clk 0:00:06.9]} 49... h4
{[%clk 0:00:05.7]} 50. Be6 {[%clk 0:00:04.9]} 50... g5 {[%clk 0:00:05.1]} 51.
Nd7 {[%clk 0:00:04.3]} 51... Qa4+ {[%clk 0:00:05.2]} 52. Kd6 {[%clk 0:00:04.2]}
52... Qa6+ {[%clk 0:00:04.2]} 53. Kd5 {[%clk 0:00:04.6]} 53... Qa5+ {[%clk
0:00:04]} 54. c5 {[%clk 0:00:04.8]} 54... Kf4 {[%clk 0:00:04.8]} 55. Kd6 {[%clk
0:00:04.4]} 55... Qa6+ {[%clk 0:00:04.2]} 56. c6 {[%clk 0:00:04.7]} 56... g4
{[%clk 0:00:04.5]} 57. Bd5 {[%clk 0:00:04.4]} 57... h3 {[%clk 0:00:02.9]} 58.
Nc5 {[%clk 0:00:05.1]} 58... Qb6 {[%clk 0:00:02.2]} 59. Nd7 {[%clk 0:00:04.8]}
59... Qd8 {[%clk 0:00:02.2]} 60. c7 {[%clk 0:00:04.6]} 60... Qc8 {[%clk
0:00:02.6]} 61. Nb6 {[%clk 0:00:04.8]} 61... Qf8+ {[%clk 0:00:02.6]} 62. Kc6
{[%clk 0:00:05]} 62... g3 {[%clk 0:00:03.5]} 63. c8=Q {[%clk 0:00:04.5]} 63...
Qxc8+ {[%clk 0:00:04]} 64. Nxc8 {[%clk 0:00:05.3]} 64... g2 {[%clk 0:00:04.9]}
65. Bxg2 {[%clk 0:00:05.1]} 65... hxg2 {[%clk 0:00:05.8]} 66. Ne7 {[%clk
0:00:05.4]} 66... g1=Q {[%clk 0:00:05.7]} 67. Nd5+ {[%clk 0:00:06.1]} 0-1